bitfinex/quotes_ETHUSD_20240922
["timestamp","ask_amount","ask_price","bid_price","bid_amount"]
[1726975943224,2.20956462,2609.0,2608.5,2.1716]
[1726975945023,0.40092675,2609.4,2608.7,1.61860693]
[1726975945225,0.40092675,2609.4,2609.2,0.2548]
[1726975945509,4.01920693,2609.6,2609.2,0.2548]
[1726975945730,0.40086597,2609.4,2609.2,0.2548]
[1726975946077,2.0194729,2609.4,2609.0,1.91638]
[1726975946284,1.61860693,2609.1,2608.7,2.17146]
[1726975946513,1.61860693,2609.1,2608.8,0.07665808]
[1726975946682,1.61860693,2609.3,2608.9,1.91646]
[1726975946885,2.4006,2609.4,2608.9,1.91646]
[1726975947116,2.4006,2609.4,2609.0,2.17119]
[1726975947355,1.61860693,2609.5,2609.1,1.91634]
[1726975951980,1.61860693,2609.3,2609.0,0.2548]
[1726975952181,1.61860693,2609.1,2608.9,1.91646]
[1726975953312,2.3462,2609.2,2608.9,1.91646]
[1726975953532,3.0,2609.9,2608.9,1.99314454]
[1726975953533,5.301,2609.7,2608.9,1.99314454]
[1726975953829,1.61860693,2609.5,2609.1,1.9163]
[1726975954291,1.61860693,2609.3,2609.1,1.9163]
[1726975955519,1.61860693,2609.5,2609.1,1.9163]
[1726975958938,1.61860693,2609.2,2608.8,2.17136]
[1726975959102,2.3746,2609.1,2608.8,4.0879]
[1726975959302,2.3746,2609.1,2608.9,1.91649]
[1726975959501,1.61860693,2609.2,2608.9,1.91649]
[1726975959905,2.3746,2609.3,2608.9,1.91649]
[1726975961998,2.3746,2609.3,2608.8,1.91654]
[1726975962345,2.3746,2609.3,2608.7,1.91663]
[1726975962346,3.99320693,2609.0,2608.7,1.91663]
[1726975962635,3.99320693,2609.0,2608.6,1.91668]
[1726975962836,2.3746,2609.0,2608.7,1.91665]
[1726975963145,3.99320693,2609.2,2608.7,1.91665]
[1726975966459,3.99320693,2609.2,2608.8,1.91658]
[1726975968242,1.61860693,2609.2,2608.8,1.91658]
[1726975970157,2.2683,2609.1,2608.6,1.91667]
[1726975970519,2.2683,2609.1,2608.7,1.91661]
[1726975971426,2.2683,2609.1,2608.8,1.91658]
[1726975971763,2.66915888,2609.3,2608.8,1.91658]
[1726975972059,2.66915888,2609.3,2608.8,1.91653]
[1726975972221,2.66915888,2609.3,2608.9,1.91651]
[1726975972567,2.66915888,2609.3,2608.8,4.08787]
[1726975972715,2.66915888,2609.3,2608.8,2.17133]
[1726975973451,0.40085888,2609.3,2609.0,1.91642]
[1726975973661,0.40085888,2609.3,2609.2,2.17109]
[1726975973839,0.40085888,2609.3,2609.2,5.17109]
[1726975974031,0.0385489,2609.8,2609.6,1.916]
[1726975974222,0.0385489,2609.8,2609.4,1.91607]
[1726975974427,0.0385489,2609.8,2609.6,1.91599]
[1726975976573,0.0385489,2609.8,2609.7,1.91592]
[1726975980361,0.0385489,2609.8,2609.6,1.91599]
[1726975989453,0.0385489,2609.8,2609.6,1.91594]
[1726975993505,0.0385489,2609.8,2609.7,2.17072]
[1726975995968,0.0385489,2609.8,2609.7,0.2548]
[1726975996207,0.0385489,2609.8,2609.6,1.91594]
[1726975996506,0.0385489,2609.8,2609.7,1.91592]
[1726976004397,0.0385489,2609.8,2609.6,1.91594]
[1726976004607,0.0385489,2609.8,2609.6,1.91593]
[1726976005909,0.0385489,2609.8,2609.7,1.91592]
[1726976007526,0.0385489,2609.8,2609.6,1.91593]
[1726976008210,0.0385489,2609.8,2609.7,1.91592]
[1726976012263,0.0385489,2609.8,2609.5,1.91602]
[1726976012465,1.61736364,2609.6,2609.3,1.91621]
[1726976012763,1.61736364,2609.6,2609.1,0.2548]
[1726976012764,1.61736364,2609.6,2609.2,1.91628]
[1726976014010,2.4337,2609.7,2609.3,1.91622]
[1726976014211,2.4337,2609.7,2609.3,3.83239]
[1726976015760,2.4337,2609.7,2609.3,3.83235]
[1726976015964,2.4337,2609.7,2609.3,1.91617]
[1726976018450,1.61736364,2609.6,2609.3,1.91617]
[1726976018839,2.4337,2609.7,2609.3,1.91617]
[1726976019288,2.83448763,2609.7,2609.4,1.9161]
[1726976034103,2.4337,2609.7,2609.4,1.9161]
[1726976037559,4.95023225,2609.7,2609.1,1.91632]
[1726976037722,1.91612,2609.5,2608.9,0.2548]
[1726976037923,1.61736364,2609.4,2608.9,0.2548]
[1726976038437,2.3692,2609.3,2608.9,2.17126]
[1726976039911,2.3692,2609.3,2608.9,1.91646]
[1726976040556,2.3692,2609.3,2609.0,1.91643]
[1726976040852,3.53348364,2609.5,2609.0,1.91638]
[1726976040853,3.98656364,2609.5,2609.0,1.91638]
[1726976042414,3.98656364,2609.5,2609.0,3.83276]
[1726976043039,4.43246225,2609.7,2609.0,3.83276]
[1726976043040,2.3692,2609.7,2609.1,2.17114]
[1726976043348,2.3692,2609.7,2609.3,1.91622]
[1726976044710,3.98656364,2609.7,2609.3,1.91622]
[1726976047331,0.0385489,2609.8,2609.6,1.91593]
[1726976047740,0.0385489,2609.8,2609.6,3.83188]
[1726976050452,0.43929304,2609.8,2609.6,3.83188]
[1726976051445,0.43929304,2609.8,2609.6,1.91593]
[1726976051995,0.43929304,2609.8,2609.6,3.83188]
[1726976054257,0.43929304,2609.8,2609.7,2.17072]
[1726976054820,0.43929304,2609.8,2609.7,2.24734799]
[1726976055059,0.43929304,2609.8,2609.7,2.17072]
[1726976072945,0.43929304,2609.8,2609.6,1.91593]
[1726976073115,0.43929304,2609.8,2609.6,1.91594]
[1726976073508,2.4971,2609.7,2609.4,1.91608]
[1726976073744,2.4971,2609.7,2609.5,1.91601]
[1726976078867,2.4971,2609.7,2609.6,1.916]
[1726976086006,2.4971,2609.7,2609.4,1.91608]
[1726976087107,2.4971,2609.7,2609.4,3.83218]
[1726976088754,0.43929304,2609.8,2609.4,3.83218]
[1726976089659,0.43929304,2609.8,2609.5,1.91605]
[1726976091490,0.43929304,2609.8,2609.4,1.91608]
[1726976091661,0.43929304,2609.8,2609.2,2.24768512]
[1726976091662,4.09236364,2609.7,2609.2,1.91625]
[1726976092197,2.475,2609.6,2609.2,1.91625]
[1726976092788,2.475,2609.6,2609.3,1.9162]
[1726976092975,2.475,2609.6,2609.2,1.91625]
[1726976095186,2.2625,2609.2,2609.0,1.91642]
[1726976095391,2.2625,2609.2,2608.8,1.91658]
[1726976096715,2.2625,2609.2,2608.8,1.91653]
[1726976097182,2.2625,2609.2,2608.8,3.83307]
[1726976097371,2.2625,2609.2,2608.8,1.91653]
[1726976097772,2.2625,2609.2,2608.8,3.83307]
[1726976098373,2.2625,2609.2,2608.8,1.91653]
[1726976099621,2.2625,2609.2,2608.6,1.91668]
[1726976099909,3.87986364,2609.2,2608.6,1.91668]
[1726976100403,3.87986364,2609.2,2608.8,1.91653]
[1726976101505,2.2625,2609.2,2608.8,1.91653]
[1726976103835,2.388584,2609.2,2608.8,1.91653]
[1726976104037,2.4907,2609.1,2608.8,1.91653]
[1726976105545,2.4907,2609.1,2608.6,1.9167]
[1726976105699,2.4907,2609.1,2608.1,1.91708]
[1726976105700,2.4907,2608.6,2608.2,1.91698]
[1726976105895,0.41080636,2608.5,2608.2,1.91698]
[1726976106203,4.10806364,2608.6,2608.2,1.91698]
[1726976106625,4.10806364,2608.6,2608.0,2.17193]
[1726976106626,6.02479364,2608.6,2608.0,2.17193]
[1726976106795,4.10806364,2608.6,2608.2,1.91701]
[1726976106993,4.710531,2608.6,2608.2,1.91701]
[1726976107206,2.4907,2608.5,2608.0,1.91712]
[1726976107411,2.4907,2608.5,2607.8,0.2548]
[1726976107412,2.4907,2608.5,2607.8,2.1721]
[1726976107612,2.4907,2608.3,2607.9,1.91723]
[1726976108949,2.4907,2608.3,2608.1,1.91705]
[1726976110934,2.4931,2608.5,2608.1,1.91705]
[1726976114508,4.11046364,2608.5,2608.1,1.91705]
[1726976115539,2.3262,2608.2,2607.9,1.91724]
[1726976115739,1.61736364,2608.1,2607.8,1.91726]
[1726976115950,1.61736364,2608.1,2607.4,0.2548]
[1726976115951,2.3262,2607.8,2607.4,2.17235]
[1726976116162,2.3262,2607.8,2607.4,1.91755]
[1726976116624,2.3262,2607.8,2607.5,1.91753]
[1726976116818,2.3262,2607.8,2607.6,1.91747]
[1726976117169,1.91699,2608.3,2607.6,2.17221]
[1726976117170,2.3262,2608.0,2607.6,2.17221]
[1726976117337,2.3262,2608.0,2607.7,1.91733]
[1726976118352,2.3262,2608.0,2607.6,2.17221]
[1726976118523,2.3262,2608.0,2607.6,4.08963]
[1726976118708,2.3262,2608.0,2607.6,2.17221]
[1726976120847,2.3262,2608.0,2607.4,1.99426955]
[1726976120848,2.3262,2607.9,2607.4,1.91758]
[1726976121055,4.24345,2607.9,2607.4,1.91758]
[1726976121224,5.86081364,2607.9,2607.2,1.9177]
[1726976121422,1.61736364,2607.7,2607.1,1.91782]
[1726976121657,1.61736364,2607.7,2607.0,9.55268]
[1726976121658,2.3262,2607.4,2607.0,9.29788]
[1726976122543,2.3262,2607.4,2607.1,1.91783]
[1726976123211,2.3262,2607.4,2607.0,1.91789]
[1726976130554,2.3262,2607.4,2606.8,1.91799]
[1726976131166,2.3262,2607.4,2607.0,1.91785]
[1726976141303,2.98175964,2607.4,2607.0,1.91785]
[1726976141877,2.98175964,2607.4,2606.8,1.91801]
[1726976142093,4.89937964,2607.4,2606.9,1.91796]
[1726976142697,4.89937964,2607.4,2606.7,0.2933489]
[1726976142698,1.61736364,2607.1,2606.7,0.0385489]
[1726976142839,2.4857,2607.0,2606.7,0.0385489]
[1726976143179,2.4857,2607.0,2606.7,1.9566589]
[1726976143334,2.4857,2607.0,2606.7,0.0385489]
[1726976146270,2.926046,2607.0,2606.7,0.0385489]
[1726976148035,4.843956,2607.0,2606.7,0.0385489]
[1726976148340,5.98285364,2606.9,2606.7,0.0385489]
[1726976148845,4.36556,2606.8,2606.7,0.0385489]
[1726976151670,4.91556,2606.8,2606.7,0.0385489]
[1726976151843,5.80467796,2606.8,2606.7,0.0385489]
[1726976157205,3.88661796,2606.8,2606.7,0.0385489]
[1726976162785,5.80467796,2606.8,2606.7,0.0385489]
[1726976169033,8.80467796,2606.8,2606.7,0.0385489]
[1726976174146,9.8720416,2606.8,2606.7,0.0385489]
[1726976176174,10.4220416,2606.8,2606.7,0.0385489]
[1726976179259,10.82322123,2606.8,2606.7,0.0385489]
[1726976183263,13.12922123,2606.8,2606.7,0.0385489]
[1726976185009,9.20585759,2606.8,2606.7,0.0385489]
[1726976185371,10.27322123,2606.8,2606.7,0.0385489]
[1726976186809,10.82322123,2606.8,2606.7,0.0385489]
[1726976188093,0.40117963,2606.8,2606.7,0.0385489]
[1726976188468,1.9179,2607.1,2606.7,0.0385489]
[1726976189370,4.08528364,2607.0,2606.7,0.0385489]
[1726976189871,1.91799,2606.9,2606.7,0.0385489]
[1726976190298,2.16736364,2607.0,2606.7,0.0385489]
[1726976190721,1.91789,2607.1,2606.8,0.2548]
[1726976190865,3.53525364,2607.1,2606.8,0.2548]
[1726976198115,1.61736364,2606.9,2606.7,0.0385489]
[1726976201339,0.55,2606.8,2606.7,0.0385489]
[1726976201508,2.46806,2606.8,2606.7,0.0385489]
[1726976202238,4.89716,2606.8,2606.7,0.0385489]
[1726976213476,7.89716,2606.8,2606.7,0.0385489]
[1726976213632,9.04041036,2606.8,2606.7,0.0385489]
[1726976215769,9.44155143,2606.8,2606.7,0.0385489]
[1726976222424,11.74855143,2606.8,2606.7,0.0385489]
[1726976223425,11.74855143,2606.8,2605.9,0.0385489]
[1726976223427,2.46864,2606.0,2605.9,0.0385489]
[1726976223631,4.75583464,2606.0,2605.9,0.0385489]
[1726976226633,3.138471,2606.0,2605.9,0.0385489]
[1726976226915,4.75583464,2606.0,2605.9,0.0385489]
[1726976227671,7.06693464,2606.0,2605.9,0.0385489]
[1726976229422,4.75583464,2606.0,2605.9,0.0385489]
[1726976230360,2.46864,2606.0,2605.9,0.0385489]
[1726976230759,3.53593364,2606.1,2605.9,0.0385489]
[1726976230760,1.91857,2606.1,2605.9,0.0385489]
[1726976230922,1.91846,2606.3,2605.9,0.2933489]
[1726976230923,0.40125257,2606.0,2605.9,0.2933489]
[1726976233623,2.86989257,2606.0,2605.9,0.2933489]
[1726976234020,0.95125257,2606.0,2605.9,0.2933489]
[1726976234428,0.95125257,2606.0,2605.1,0.11530558]
[1726976234429,0.55,2605.6,2605.1,0.0385489]
[1726976234653,0.55,2605.3,2605.1,0.0385489]
[1726976235630,0.55,2605.8,2605.3,0.2548]
[1726976235964,2.16736364,2605.8,2605.3,0.2548]
[1726976236336,1.91896,2605.6,2605.3,0.2548]
[1726976236542,4.08620364,2605.8,2605.3,0.2548]
[1726976236735,1.91891,2605.7,2605.3,0.2548]
[1726976238474,0.55,2605.8,2605.3,0.2548]
[1726976238884,0.55,2605.8,2605.4,0.2548]
[1726976239478,0.55,2605.9,2605.4,0.2548]
[1726976240068,2.46874,2605.9,2605.4,0.2548]
[1726976240273,1.91879,2605.8,2605.4,0.2548]
[1726976240466,0.55,2605.9,2605.4,0.2548]
[1726976241682,1.91881,2605.8,2605.4,0.2548]
[1726976241983,1.91896,2605.6,2605.4,0.2548]
[1726976242182,0.55,2605.5,2605.4,0.2548]
[1726976242342,1.91894,2605.6,2605.4,0.2548]
[1726976242703,4.084551,2605.8,2605.4,0.2548]
[1726976242865,2.46891,2605.7,2605.4,0.2548]
[1726976244291,0.55,2605.8,2605.4,0.2548]
[1726976244592,2.4688,2605.8,2605.4,0.2548]
[1726976244795,1.91887,2605.7,2605.4,0.2548]
[1726976251285,0.55,2605.5,2605.4,0.2548]
[1726976255106,0.4012554,2605.7,2605.4,0.2548]
[1726976257379,0.55,2605.7,2605.4,0.2548]
[1726976258297,0.55,2605.8,2605.4,0.2548]
[1726976258867,0.55,2606.0,2605.4,2.17388]
[1726976259078,4.387968,2606.0,2605.4,2.17388]
[1726976259374,1.91872,2605.9,2605.4,2.17388]
[1726976259704,0.55,2605.8,2605.4,2.17388]
[1726976259908,0.55,2605.8,2605.4,0.2548]
[1726976264290,0.55,2605.8,2605.4,2.17388]
[1726976264924,8.45967786,2606.1,2605.6,0.2548]
[1726976265124,0.55,2606.0,2605.6,0.2548]
[1726976265307,8.06036266,2606.1,2605.6,0.2548]
[1726976265817,0.40124598,2606.2,2605.9,0.2548]
[1726976266138,16.71644786,2606.4,2605.9,0.2548]
[1726976266139,11.20480786,2606.4,2605.9,0.2548]
[1726976266433,0.40123614,2606.2,2605.9,0.2548]
[1726976266941,2.023684,2606.2,2605.9,0.2548]
[1726976267119,0.55,2606.0,2605.9,0.2548]
[1726976267285,2.17244786,2606.0,2605.6,0.2548]
[1726976267888,0.55,2606.0,2605.6,0.2548]
[1726976268934,2.46866,2606.0,2605.6,0.2548]
[1726976269308,4.91776,2606.0,2605.6,0.2548]
[1726976269517,6.3936011,2606.0,2605.6,0.2548]
[1726976270495,8.3123111,2606.0,2605.4,0.2548]
[1726976270722,0.55,2605.8,2605.4,0.2548]
[1726976274547,2.46881,2605.8,2605.4,0.2548]
[1726976274744,3.65158845,2605.8,2605.4,0.2548]
[1726976275049,2.46881,2605.8,2605.4,0.2548]
[1726976278321,0.55,2605.8,2605.4,0.2548]
[1726976280765,2.46881,2605.8,2605.4,0.2548]
[1726976282796,0.55,2605.9,2605.4,0.2548]
[1726976282986,0.55,2605.9,2605.4,2.17384]
[1726976283286,0.55,2605.9,2605.4,0.2548]
[1726976283589,1.12132269,2605.9,2605.4,0.2548]
[1726976284158,3.04008269,2605.9,2605.4,0.2548]
[1726976284687,3.04008269,2605.9,2605.2,2.17403]
[1726976284688,2.3869,2605.7,2605.2,2.17403]
[1726976288801,4.30577,2605.7,2605.2,0.2548]
[1726976289007,6.22469,2605.7,2605.1,1.9578089]
[1726976289171,1.02070309,2605.6,2605.1,0.0385489]
[1726976289373,1.91903,2605.5,2605.1,0.0385489]
[1726976291096,5.99863376,2605.4,2605.1,0.0385489]
[1726976291293,2.46917,2605.3,2605.1,0.0385489]
[1726976291455,0.84678038,2605.2,2605.1,0.0385489]
[1726976292006,7.39554414,2605.2,2605.1,0.0385489]
[1726976294112,9.29046797,2605.2,2605.1,0.0385489]
[1726976298689,3.30328038,2605.2,2605.1,0.0385489]
[1726976298893,2.4565,2605.2,2605.1,0.0385489]
[1726976299991,5.43700759,2605.5,2604.3,7.4185489]
[1726976299992,2.4102,2604.6,2604.3,0.0385489]
[1726976300191,0.55,2604.7,2604.3,0.0385489]
[1726976301008,2.46961,2604.7,2604.3,0.0385489]
[1726976303309,2.46962,2604.7,2604.3,0.0385489]
[1726976303512,2.46962,2604.7,2604.3,0.2933489]
[1726976304263,3.50134676,2604.7,2604.3,0.2933489]
[1726976305079,1.91974,2604.6,2604.3,0.2933489]
[1726976305266,1.9198,2604.5,2604.3,0.0385489]
[1726976305809,4.33,2604.5,2604.3,0.0385489]
[1726976307303,2.46982,2604.4,2604.3,0.0385489]
[1726976307571,0.55,2604.4,2604.3,0.0385489]
[1726976309906,2.46982,2604.4,2604.3,0.0385489]
[1726976310715,1.91977,2604.5,2604.3,0.0385489]
[1726976310868,0.55,2604.4,2604.3,0.0385489]
[1726976311730,2.8259,2604.4,2604.3,0.0385489]
[1726976318908,0.55,2604.4,2604.3,0.0385489]
[1726976324720,2.46982,2604.4,2604.3,0.0385489]
[1726976326156,4.89012,2604.4,2604.3,0.0385489]
[1726976326456,5.82789299,2604.4,2604.3,0.0385489]
[1726976335260,8.82789299,2604.4,2604.3,0.0385489]
[1726976337282,11.13489299,2604.4,2604.3,0.0385489]
[1726976339359,8.82789299,2604.4,2604.3,0.0385489]
[1726976339564,10.45222073,2604.4,2604.3,0.0385489]
[1726976347313,3.0,2604.5,2604.3,0.0385489]
[1726976347528,0.40137844,2604.6,2604.3,0.0385489]
[1726976347670,0.40137844,2604.6,2604.4,0.2548]
[1726976348191,2.32107844,2604.6,2604.4,0.2548]
[1726976348886,0.55,2604.5,2604.4,0.2548]
[1726976351755,2.94882184,2604.5,2604.3,0.0385489]
[1726976352051,2.17432774,2604.4,2604.3,0.0385489]
[1726976352555,4.09414774,2604.4,2604.3,0.0385489]
[1726976353060,2.17432774,2604.4,2604.3,0.0385489]
[1726976355942,4.49742774,2604.4,2604.3,0.0385489]
[1726976356117,5.41917054,2604.4,2604.3,0.0385489]
[1726976358774,0.55,2604.4,2604.3,0.0385489]
[1726976361776,2.17432774,2604.4,2604.3,0.0385489]
[1726976362084,4.09414774,2604.4,2604.3,0.0385489]
[1726976362731,0.55,2604.5,2604.3,0.0385489]
[1726976368990,0.40137844,2604.6,2604.4,0.2548]
[1726976373335,1.62432774,2604.5,2604.3,0.0385489]
[1726976378127,0.55,2604.4,2604.3,0.0385489]
[1726976385728,0.55,2604.5,2604.3,0.0385489]
[1726976386029,3.54388774,2604.8,2604.3,0.2933489]
[1726976386186,3.54400774,2604.6,2604.3,0.2933489]
[1726976387408,0.55,2604.5,2604.3,0.2933489]
[1726976389332,10.0309,2604.9,2604.4,1.91982]
[1726976389333,0.55,2604.9,2604.4,1.91982]
[1726976389844,1.62432774,2604.8,2604.4,1.91982]
[1726976390044,0.55,2604.7,2604.3,0.2933489]
[1726976391054,1.62432774,2604.6,2604.3,0.2933489]
[1726976392025,0.55,2604.5,2604.3,0.2933489]
[1726976394562,0.55,2604.5,2604.3,0.0385489]
[1726976399300,4.67422774,2604.4,2604.3,0.0385489]
[1726976401084,0.55,2604.5,2604.3,0.0385489]
[1726976402560,2.46975,2604.5,2604.3,0.0385489]
[1726976402774,3.38573315,2604.5,2604.3,0.0385489]
[1726976404384,4.09414774,2604.4,2604.3,0.0385489]
[1726976404712,2.17432774,2604.4,2604.3,0.0385489]
[1726976405694,4.09414774,2604.4,2604.3,0.0385489]
[1726976407160,0.55,2604.4,2604.3,0.0385489]
[1726976407359,1.49297809,2604.4,2604.3,0.0385489]
[1726976408669,3.41279809,2604.4,2604.3,0.0385489]
[1726976409134,3.81443737,2604.4,2604.3,0.0385489]
[1726976409460,3.41279809,2604.4,2604.3,0.0385489]
[1726976410490,1.49297809,2604.4,2604.3,0.0385489]
[1726976410644,0.55,2604.5,2604.3,0.0385489]
[1726976412764,0.55,2604.6,2604.3,0.0385489]
[1726976413885,2.46968,2604.6,2604.3,0.0385489]
[1726976414047,0.55,2604.4,2604.3,0.0385489]
[1726976415744,0.40160848,2604.5,2604.4,0.2548]
[1726976421566,0.40160848,2604.5,2604.4,2.17462]
[1726976421893,2.3428,2604.9,2604.4,2.17462]
[1726976421894,0.55,2604.8,2604.4,2.17462]
[1726976422265,0.40158425,2604.7,2604.4,2.17462]
[1726976422965,0.40158425,2604.7,2604.4,0.2548]
[1726976434360,1.62432774,2604.6,2604.3,1.9583989]
[1726976434507,4.04172774,2604.6,2604.3,1.9583989]
[1726976435312,4.3371,2604.6,2604.3,0.0385489]
[1726976435658,0.55,2604.5,2604.3,0.0385489]
[1726976436370,1.30968302,2604.5,2604.3,0.0385489]
[1726976436825,0.55,2604.5,2604.3,0.0385489]
[1726976439317,2.4174,2604.4,2604.3,0.0385489]
[1726976440036,2.81900996,2604.4,2604.3,0.0385489]
[1726976441459,3.36900996,2604.4,2604.3,0.0385489]
[1726976442245,4.9933377,2604.4,2604.3,0.0385489]
[1726976445654,0.95160996,2604.4,2604.3,0.0385489]
[1726976448252,0.40160996,2604.4,2604.3,0.0385489]
[1726976448577,0.55,2604.5,2604.3,0.0385489]
[1726976448786,0.40160478,2604.4,2604.3,0.0385489]
[1726976450388,0.40160478,2604.4,2604.3,2.2132489]
[1726976450556,0.40160478,2604.4,2604.3,2.29004042]
[1726976450758,5.80401774,2605.0,2604.3,2.29004042]
[1726976450759,5.80401774,2605.0,2604.5,1.91975]
[1726976451115,0.40157423,2604.6,2604.5,1.91975]
[1726976451248,5.80401774,2605.0,2604.5,1.91975]
[1726976451642,0.40156967,2604.6,2604.5,2.17455]
[1726976451845,12.41592933,2605.4,2605.1,1.91927]
[1726976451846,7.49679933,2605.4,2605.1,1.91927]
[1726976452080,1.16784718,2605.6,2605.2,0.2548]
[1726976452444,0.40150352,2605.3,2605.2,0.2548]
[1726976452850,0.40150352,2605.3,2605.2,2.17403]
[1726976453171,0.40150352,2605.3,2605.2,0.2548]
[1726976455101,1.16784718,2605.6,2605.2,0.2548]
[1726976455272,0.4014866,2605.3,2605.2,0.2548]
[1726976456359,1.16784718,2605.6,2605.2,0.2548]
[1726976457101,1.16784718,2605.6,2605.2,2.17403]
[1726976459307,1.16784718,2605.6,2605.3,1.91916]
[1726976460318,1.16784718,2605.6,2605.3,3.83827]
[1726976460462,1.16784718,2605.6,2605.3,1.91911]
[1726976462713,1.16784718,2605.6,2605.3,3.83822]
[1726976462915,1.16784718,2605.6,2605.3,1.91911]
[1726976465630,1.16784718,2605.6,2605.4,1.91904]
[1726976465975,3.40148411,2606.0,2605.4,1.91904]
[1726976465976,0.40148411,2606.0,2605.5,1.91901]
[1726976466192,0.40148411,2606.0,2605.5,1.91896]
[1726976469318,0.40148411,2606.0,2605.6,0.07675235]
[1726976469932,0.40148411,2606.0,2605.5,1.99570982]
[1726976470298,0.40148411,2606.0,2605.6,1.91887]
[1726976470611,0.40148411,2606.0,2605.8,1.91878]
[1726976470817,0.40148411,2606.0,2605.8,1.99552252]
[1726976471334,0.40148411,2606.0,2605.8,1.91878]
[1726976473862,0.40148411,2606.0,2605.9,0.2548]
[1726976474468,0.40148411,2606.0,2605.7,1.91881]
[1726976474842,2.02581185,2606.0,2605.6,2.17373]
[1726976475380,2.02581185,2606.0,2605.6,2.17369]
[1726976479190,0.40148411,2606.0,2605.6,4.09258]
[1726976479345,0.40148411,2606.0,2605.6,2.17369]
[1726976479747,0.40148411,2606.0,2605.6,4.09259]
[1726976480087,0.40148411,2606.0,2605.6,2.17369]
[1726976481054,0.40148411,2606.0,2605.7,1.99556101]
[1726976481253,0.40148411,2606.0,2605.7,3.91438101]
[1726976482006,0.40148411,2606.0,2605.8,1.91875]
[1726976482798,0.40148411,2606.0,2605.7,3.83764]
[1726976483415,0.40148411,2606.0,2605.7,3.83762]
[1726976483565,0.40148411,2606.0,2605.7,3.83761]
[1726976483763,0.40148411,2606.0,2605.8,1.91878]
[1726976485600,0.40148411,2606.0,2605.7,1.9188]
[1726976486871,0.40148411,2606.0,2605.8,1.91879]
[1726976488548,0.40148411,2606.0,2605.7,3.83762]
[1726976488985,0.40148411,2606.0,2605.8,1.91879]
[1726976489517,0.40148411,2606.0,2605.7,1.9188]
[1726976493679,0.40148411,2606.0,2605.7,3.83762]
[1726976494786,0.40148411,2606.0,2605.7,1.9188]
[1726976495017,0.40148411,2606.0,2605.7,3.83762]
[1726976495221,0.40148411,2606.0,2605.7,1.99554564]
[1726976495402,0.40148411,2606.0,2605.9,1.91872]
[1726976495812,0.40148411,2606.0,2605.9,2.17352]
[1726976496324,2.2676,2606.3,2606.0,1.91859]
[1726976496538,2.2676,2606.3,2605.9,2.17352]
[1726976496539,0.40132974,2606.3,2606.1,1.91857]
[1726976497194,3.0449,2606.6,2606.1,1.91857]
[1726976498022,3.0449,2606.6,2606.1,3.8371]
[1726976498334,3.0449,2606.6,2606.1,1.91853]
[1726976499224,3.0449,2606.6,2606.1,3.83705]
[1726976499835,2.4949,2606.6,2606.3,1.91842]
[1726976500063,2.4949,2606.6,2606.3,3.8368]
[1726976500341,0.55,2606.7,2606.3,3.83675]
[1726976500701,0.55,2606.7,2606.4,1.91833]
[1726976502302,2.31918112,2607.1,2606.5,0.07673035]
[1726976502504,2.4949,2607.0,2606.6,1.9182]
[1726976504663,2.4949,2607.0,2606.7,1.91809]
[1726976505170,0.40131112,2607.1,2606.8,1.91804]
[1726976505461,0.40131112,2607.1,2606.9,2.17273]
[1726976506058,0.40131112,2607.1,2606.9,0.2548]
[1726976506274,0.40131112,2607.1,2606.6,1.91817]
[1726976506275,2.4949,2607.0,2606.6,1.91815]
[1726976506768,2.4949,2607.0,2606.7,1.91813]
[1726976507270,2.4949,2607.0,2606.8,1.91805]
[1726976509926,2.4949,2607.0,2606.6,1.91815]
[1726976510560,2.4949,2607.0,2606.4,2.24983025]
[1726976510764,1.62432774,2606.9,2606.4,2.17309]
[1726976510920,2.2945,2606.6,2606.3,7.38]
[1726976511575,0.40127288,2606.5,2606.3,7.38]
[1726976511889,0.40127288,2606.5,2606.3,1.91838]
[1726976512097,0.40127288,2606.5,2606.4,1.91835]
[1726976512640,0.40127288,2606.5,2606.4,2.17315]
[1726976512949,0.55,2606.8,2606.4,2.17315]
[1726976513275,0.40126645,2606.5,2606.4,2.17315]
[1726976513468,0.40126645,2606.5,2606.2,2.24996961]
[1726976513665,0.40126645,2606.5,2606.2,2.17324]
[1726976514197,0.55,2606.8,2606.2,2.17324]
[1726976514398,0.40126663,2606.4,2606.3,0.07672936]
[1726976514703,0.55,2606.8,2606.2,2.24996994]
[1726976514898,0.55,2606.8,2606.3,1.91842]
[1726976515067,0.40126663,2606.4,2606.3,1.91842]
[1726976515392,0.55,2606.8,2606.3,1.91842]
[1726976515594,0.40126655,2606.4,2606.3,1.91842]
[1726976515804,0.55,2606.8,2606.3,1.91842]
[1726976516098,0.40126671,2606.4,2606.3,1.91842]
[1726976516480,0.55,2606.8,2606.3,1.91842]
[1726976516655,0.4012668,2606.4,2606.3,1.91842]
[1726976517057,0.55,2606.8,2606.3,1.91842]
[1726976517293,0.40126687,2606.4,2606.3,1.91842]
[1726976517598,0.55,2606.8,2606.3,1.91842]
[1726976517754,0.40126688,2606.4,2606.3,1.91842]
[1726976518309,0.55,2606.8,2606.3,1.91842]
[1726976518592,0.40126436,2606.4,2606.3,1.91842]
[1726976518794,2.2945,2606.9,2606.4,1.91832]
[1726976518955,2.2945,2606.9,2606.4,1.99504349]
[1726976519456,0.40125604,2606.8,2606.4,1.99504349]
[1726976520401,0.40125604,2606.8,2606.4,1.91832]
[1726976523104,0.40125604,2606.8,2606.4,3.83663]
[1726976523472,0.40125604,2606.8,2606.4,1.91831]
[1726976525762,0.40125604,2606.8,2606.5,1.99494353]
[1726976526772,0.40125604,2606.8,2606.4,1.91831]
[1726976527467,0.40125604,2606.8,2606.4,3.83661]
[1726976527675,0.40125604,2606.8,2606.4,1.9183]
[1726976528977,0.40125604,2606.8,2606.4,1.99502334]
[1726976529286,0.40125604,2606.8,2606.4,1.9183]
[1726976530085,0.40125604,2606.8,2606.4,1.99502332]
[1726976530296,0.40125604,2606.8,2606.4,1.9183]
[1726976530508,0.40125604,2606.8,2606.4,3.8366]
[1726976530663,0.40125604,2606.8,2606.5,1.91827]
[1726976532075,0.40125604,2606.8,2606.6,1.91819]